Date,Supplier,Brief Description and Quantity,Cost Centre,A/C,Merchant Category, � Gross Amount ,VAT Not Recovered,Dept
01/04/2022,MHFA England,MHFA registration for Certificates,5220,60115,Staff Training & Development,156.00,,Human Resources
01/04/2022,TL & GN Railway,*Redacted* - Online Train Booking,4440,60913,Public Transport for Clients,10.80,,Housing
01/04/2022,Google,Map searches for City,5222,64071,ICT Software,225.40,,3C ICT
01/04/2022,Zoom ,Meeting Software for SCDC,5223,64071,ICT Software,799.82,,3C ICT
01/04/2022,Microsoft,Azure Licence,5286,64071,ICT Software,25.55,,3C ICT
01/04/2022,Atlassian,JIRA Subscription,5286,64071,ICT Software,866.26,,3C ICT
01/04/2022,J2 eFax,Fax-to-email software,5222,64071,ICT Software,19.20,,3C ICT
01/04/2022,1&1 Ionos,Domains-hdcventures,5286,64900,Registration Fee,27.71,,3C ICT
01/04/2022,1&1 Ionos,Domains-stringpins,5286,64900,Registration Fee,31.31,,3C ICT
01/04/2022,AutoSPF,Authorised Email Domain - 3Cs,5286,64071,ICT Software,9.48,,3C ICT
01/04/2022,Tamar Telecomms,0300 number for BldgCont,5222,64077,Land Line Rental,17.99,,3C ICT
01/04/2022,Tamar Telecomms,Extra SIP Numbers for SCDC,5223,64077,Land Line Rental,209.86,,3C ICT
01/04/2022,Tamar Telecomms,Extra SIP Numbers for HDC,5229,64077,Land Line Rental,13.19,,3C ICT
01/04/2022,Postman,Digital Team,5286,64071,ICT Software,108.41,,3C ICT
01/04/2022,MailChimp,MailChimp Subscription,5227,64077,Land Line Rental,15.72,,3C ICT
01/04/2022,MailChimp,Mandrill Auto Email,5222,64077,Land Line Rental,77.01,,3C ICT
01/04/2022,Zoom ,Meeting Software for SCDC,5223,64071,ICT Software,799.82,,3C ICT
01/04/2022,1&1 Ionos,Domain-councillor.online,5286,64900,Registration Fee,30.12,,3C ICT
01/04/2022,Google,Map searches for HDC,5229,64071,ICT Software,150.40,,3C ICT
01/04/2022,Digicert,SSL for HousingDigital,5223,64071,ICT Software,918.67,,3C ICT
01/04/2022,Paddle,EasyRetro,5222,64071,ICT Software,60.00,,3C ICT
01/04/2022,GitHub,GitKraken for Digital,5286,64071,ICT Software,15.22,,3C ICT
01/04/2022,Google,Map searches for HDC,5229,64071,ICT Software,40.57,,3C ICT
01/04/2022,Yumbles,Hamper,4143,60124,Team Rewards,59.90,,Operations
01/04/2022,Yumbles,Hamper,4143,60124,Team Rewards,59.90,,Operations
01/04/2022,Yumbles,Hamper,4143,60124,Team Rewards,59.90,,Operations
04/04/2022,Amazon,CS Sneeze Screens  ,5288,61709,Materials,261.92,,Facilities
04/04/2022,Amazon,Glass/Floor Lifters,5288,61709,Materials,158.94,,Facilities
04/04/2022,Harwell,Subscription for training seminars,4205,62401,Subcontractors,"2,424.00",,Corporate Office
05/04/2022,Amazon,Triple lifter,5288,61709,Materials,174.98,,Facilities
05/04/2022,Facebook,Facebook advetising,4010,62005,Advertising Publicity & Marketing,25.00,,One Leisure
05/04/2022,TV LICENSING,annual renewal tv licence - OLSN,4075,60410,Licences,159.00,,One Leisure
06/04/2022,Amazon,Fire Call point Keys,5288,61709,Materials,11.22,,Facilities
06/04/2022,Amazon,Badminton Net for Main Field,4119,61709,Materials,11.99,,Country Services
06/04/2022,Amazon,Face Paints for Easter and Robin Hood events,4119,62900,Events,96.30,,Country Services
06/04/2022,Facebook,Environmental consultations,4143,62005,Advertising Publicity & Marketing,3.94,,Corporate Office
07/04/2022,Zoom ,Licence for Virtual Committee Meeetings,4157,64072,ICT Licence,191.90,,Corporate Office
07/04/2022,Buyagift,Theatre ticket gift,5220,60124,Team Rewards,74.49,,Operations
07/04/2022,Screwfix,power drills,4124,61713,Equipment,279.98,,Country Services
07/04/2022,Amazon,Retevis RT27 Walkie Talkie,4050,61713,Equipment,98.99,,One Leisure
08/04/2022,Amazon,laptop projector,4124,61713,Equipment,60.98,,Country Services
09/04/2022,ADOBE CREATIVE CLOUD,Adobe Creative Suite,4010,62005,Advertising Publicity & Marketing,41.62,,One Leisure
09/04/2022,Amazon,Track pad,4124,61713,Equipment,34.95,,Country Services
11/04/2022,Amazon,Extension Reel,5288,61709,Materials,51.47,,Facilities
11/04/2022,Westminster Forum,Conference - refund,4170,64800,Membership & Subscriptions,-175.32,,Operations
11/04/2022,Mailchimp,Buik emails,4135,64100,Postage & Courier Services,563.59,,Corporate Office
12/04/2022,Amazon,Gym Equipment ,4018,61713,Equipment,23.94,,One Leisure
12/04/2022,Archant,Advertising Publicity & Marketing,4138,62005,Advertising Publicity & Marketing,9.99,,Corporate Office
12/04/2022,Amazon,Heavy duty webbing strap,4056,61713,Equipment,13.98,,One Leisure
13/04/2022,Toolstation,CVS Power Cables,5288,61709,Materials,16.90,,Facilities
13/04/2022,Facebook,Environmental consultations,4143,62005,Advertising Publicity & Marketing,0.98,,Corporate Office
13/04/2022,Screwfix,Drill bitsand double sided tape,4055,61713,Equipment,29.98,,One Leisure
14/04/2022,solopress,Printing,4010,62005,Advertising Publicity & Marketing,289.21,,One Leisure
18/04/2022,Adobe,Marketing,4010,62005,Advertising Publicity & Marketing,41.62,,One Leisure
18/04/2022,Twilio,recurring payment for Voice Bot application,4151,64071,ICT Software,20.00,,Corporate Office
19/04/2022,RLSS - Tahdah,Course resources,5220,60115,Staff Training & Development,100.00,,One Leisure
19/04/2022,Amazon,Retevis 2 way radio ear pieces,4050,61713,Equipment,25.99,,One Leisure
20/04/2022,Farnell,2 x SB382 SWITCH BOX RJ45 2WAY FOR CAT5/6,5286,64071,ICT Software,52.30,,3C ICT
20/04/2022,Amazon,Combi door locks OLR,4032,61713,Equipment,63.98,,One Leisure
21/04/2022,Amazon,Equipment ,4021,61702,Equipment Maintenace,17.64,,One Leisure
21/04/2022,Guardian Ad,Recruitment for Director of Corporate Services and Strategic HR Manager roles,4138,62005,Advertising Publicity & Marketing,"1,311.00",,Corporate Office
21/04/2022,Wilko,Extension lead,4145,62002,Stationary,1.80,,Corporate Office
21/04/2022,Sainsburys,Sweets for election activity,4499,61903,Hospitality,15.15,,Corporate Office
22/04/2022,Canva,Canva:03396-29321402 - Sydney,5222,64071,ICT Software,10.99,,3C ICT
22/04/2022,Cherwell Signs,CS Sneeze Screens Clamps,5288,61709,Materials,50.17,,Facilities
22/04/2022,RLSS - Tahdah,Course resources,5220,60115,Staff Training & Development,169.00,,One Leisure
24/04/2022,Matterport,Virtual Tour licence fee,4010,62005,Advertising Publicity & Marketing,9.59,,One Leisure
24/04/2022,B & Q,hardware,4124,61713,Equipment,39.77,,Country Services
25/04/2022,Amazon,Door Key fobs,4075,61713,Equipment,31.00,,One Leisure
25/04/2022,Digicert Inc,Digicert Inc - 268.00 USD - Incl Non Sterling Transaction Fee 6.09,5227,64071,ICT Software,212.50,,3C ICT
25/04/2022,Westminster Forum,Conference,4170,64800,Membership & Subscriptions,252.00,,Operations
26/04/2022,Amazon,swimming dive sticks,4075,61713,Equipment,33.24,,One Leisure
26/04/2022,DVLA,Vehicle Excise Duty,5204,60905,Vehicle Licencing,167.50,,Operations
26/04/2022,DVLA,Vehicle Excise Duty,5204,60905,Vehicle Licencing,167.50,,Operations
26/04/2022,DVLA,Vehicle Excise Duty,5204,60905,Vehicle Licencing,302.50,,Operations
26/04/2022,DVLA,Vehicle Excise Duty,5204,60905,Vehicle Licencing,167.50,,Operations
26/04/2022,Sweet Paradise,Gift - sweet box,4129,60273,Site Alterations,10.00,,Operations
26/04/2022,Sweet Paradise,Gift - sweet box,4129,60273,Site Alterations,2.00,,Operations
26/04/2022,Air Products,Gas cylinder rental,5370,61713,Equipment,37.03,,Operations
27/04/2022,Wickes,Box for election count materials,4499,61703,Purchase - Equipment Furniture and Materials,19.00,,Corporate Office
27/04/2022,K-Bins Ltd,Boxes for ballot paper sorting at count,4499,61703,Purchase - Equipment Furniture and Materials,126.72,,Corporate Office
28/04/2022,Tesco's,Petrol for tractor,4075,61713,Equipment,18.80,,One Leisure
28/04/2022,Cartridge Supplies,1 x Compatible MLT-D111S Black Toner Cartridge (SU810A) for *Redacted* - Post Voting Room for May Elections ,5224,64070,ICT Hardware,34.89,,3C ICT
28/04/2022,Amazon,Thicker Sneeze Screens,5288,61709,Materials,398.45,,Facilities
28/04/2022,Istock.com,Stock Images,4010,62005,Advertising Publicity & Marketing,84.00,,One Leisure
28/04/2022,Stormflame,Finger guards Ramsey,4032,60201,Maintenance - Building,691.06,,One Leisure
28/04/2022,Amazon,Gym Equipment ,4018,61713,Equipment,21.96,,One Leisure
28/04/2022,Morrisons,Plastic bags for hand sanitiser,4499,61703,Purchase - Equipment Furniture and Materials,15.00,,Corporate Office
28/04/2022,Western Union,Transfer for Homes for Ukraine family,4194,64600,Grants & Contributions,200.00,,Corporate Office
28/04/2022,Amazon,Sikaflex sealant,4124,61713,Equipment,16.36,,Country Services
29/04/2022,WHALEYS/BRADFORD/LTD,CENTRE PLAYERS CANVAS UPDATES,4050,61709,Materials,409.38,,One Leisure
30/04/2022,BOOKER 3528205,Jura Milk cleaner 1 @  BURG,4052,61300,Cleaning Materials,30.29,,One Leisure
30/04/2022,BOOKER 3528205,Jura Milk cleaner 1 @  BURG,4049,61300,Cleaning Materials,30.29,,One Leisure
30/04/2022,Amazon,Ph corrector for the pool OLR,4032,61713,Equipment,24.95,,One Leisure
01/05/2022,Microsoft,Azure Licence,5286,64071,ICT Software,28.95,,3C ICT
01/05/2022,Atlassian,JIRA Subscription,5286,64071,ICT Software,930.90,,3C ICT
01/05/2022,J2 eFax,Fax-to-email software,5222,64071,ICT Software,19.20,,3C ICT
01/05/2022,1&1 Ionos,Domain - mycouncillors.uk,5286,64900,Registration Fee,11.99,,3C ICT
01/05/2022,1&1 Ionos,Domain - camcit.co,5286,64900,Registration Fee,41.98,,3C ICT
01/05/2022,1&1 Ionos,Domains for GCSPS,5286,64900,Registration Fee,31.31,,3C ICT
01/05/2022,AutoSPF,Authorised Email Domain - 3Cs,5286,64071,ICT Software,10.16,,3C ICT
01/05/2022,Tamar Telecomms,0300 number for BldgCont,5222,64077,Land Line Rental,17.99,,3C ICT
01/05/2022,Tamar Telecomms,Extra SIP Numbers for SCDC,5223,64077,Land Line Rental,209.86,,3C ICT
01/05/2022,Tamar Telecomms,Extra SIP Numbers for HDC,5229,64077,Land Line Rental,13.19,,3C ICT
01/05/2022,Postman,Digital Team,5286,64071,ICT Software,111.76,,3C ICT
01/05/2022,MailChimp,MailChimp Subscription,5227,64077,Land Line Rental,16.20,,3C ICT
01/05/2022,MailChimp,Mandrill Auto Email,5222,64077,Land Line Rental,79.39,,3C ICT
01/05/2022,Zoom,Meeting Software for SCDC,5223,64071,ICT Software,799.82,,3C ICT
01/05/2022,Google,Map searches for City,5222,64071,ICT Software,298.12,,3C ICT
01/05/2022,Google,Map searches for HDC,5229,64071,ICT Software,300.81,,3C ICT
01/05/2022,APM,2x Conference tickets for Portfolio,5286,64300,Conference Expenses,850.00,,3C ICT
01/05/2022,UptimeRobot,Website Monitor for Digital Team,5286,64071,ICT Software,82.64,,3C ICT
01/05/2022,Google,Map searches for City,5222,64071,ICT Software,312.05,,3C ICT
01/05/2022,Paddle,EasyRetro,5222,64071,ICT Software,60.00,,3C ICT
02/05/2022,Defib Pad,defib key - child/infant ,4018,61713,Equipment,94.20,,One Leisure
02/05/2022,Amazon,Waterproof tablet cases x3 for swim lessons OLR,4032,61713,Equipment,50.97,,One Leisure
03/05/2022,Brookes,Catering for Member Induction,4164,61902,Catering Services,493.50,,Corporate Office
03/05/2022,Brookes,Catering for Member Induction,4164,61902,Catering Services,41.50,,Corporate Office
03/05/2022,Amazon,Wireless mouse and keyboard for VC,4124,61713,Equipment,29.99,,Country Services
04/05/2022,Trainline,Tickets for *Redacted* to attend an event,4145,61903,Hospitality,17.95,,Corporate Office
04/05/2022,Aldi,Sweets for election activity,4499,61903,Hospitality,14.25,,Corporate Office
04/05/2022,Blackwolf,Keys cutt,4075,61713,Equipment,6.50,,One Leisure
04/05/2022,Amazon,Paint stripper,4055,60201,Maintenance - Building,26.00,,One Leisure
04/05/2022,Amazon,Detail sander,4055,60201,Maintenance - Building,14.99,,One Leisure
05/05/2022,LGA,LG Comms subscription,4152,64800,Membership & Subscriptions,300.00,,Corporate Office
05/05/2022,Sainsburys,Sweets for election activity,4499,61903,Hospitality,50.00,,Corporate Office
05/05/2022,Amazon,decorating materials,4055,60201,Maintenance - Building,23.80,,One Leisure
05/05/2022,McDonalds,Breakfast for core elections team,4499,61902,Catering Services,25.41,,Corporate Office
05/05/2022,B & Q,Dishwasher fittings,4124,61713,Equipment,12.27,,Country Services
06/05/2022,Dominoes,Pizza for on-site election team,4499,61903,Hospitality,79.92,,Corporate Office
06/05/2022,Data Comms Direct,8x Under Desk Power Outlet 4x UK Sockets @ 14.14 each,5286,64071,ICT Software,136.03,,3C ICT
06/05/2022,Amazon,decorating materials,4055,60201,Maintenance - Building,49.83,,One Leisure
06/05/2022,Far-away Art Print Services,Mugs for Volunteer Thankyou event,4113,62900,Events,297.00,,Country Services
08/05/2022,Amazon,audio cable & toilet brush,4075,61713,Equipment,46.86,,One Leisure
08/05/2022,Zoom ,Licence for Virtual Committee Meeetings,4157,64072,ICT Licence,191.90,,Corporate Office
08/05/2022,Amazon,Mouse repellent spray OLR,4032,61713,Equipment,12.99,,One Leisure
08/05/2022,Screwfix,Equipment,4032,61713,Equipment,19.99,,One Leisure
08/05/2022,Amazon,Key cabinet,4129,60273,Site Alterations,16.99,,Operations
09/05/2022,Amazon,decorating materials,4055,60201,Maintenance - Building,6.54,,One Leisure
09/05/2022,Classic Cornish Hampers,Staff reward - hamper,4143,60124,Team Rewards,39.40,,Operations
10/05/2022,Tescos,Flowers for staff,4145,60124,Team Rewards,35.75,,Corporate Office
10/05/2022,Amazon,Gym Equipment ,4018,61713,Equipment,29.98,,One Leisure
10/05/2022,Cop Shop,Evidence bags,4184,62002,Stationary,50.41,,Operations
10/05/2022,Stevenson plumbing,Dishwasher fittings,4124,61713,Equipment,13.50,,Country Services
10/05/2022,Amazon,Prime,4124,61713,Equipment,7.99,,Country Services
11/05/2022,Mailchimp,Bulk emails,4135,64100,Postage & Courier Services,596.74,,Corporate Office
11/05/2022,Amazon,Archive Box Trunks,5288,61702,Equipment Maintenace,189.99,,Facilities
11/05/2022,Amazon,Grass Trimmer & Power Brush,5288,61702,Equipment Maintenace,309.98,,Facilities
11/05/2022,Simpson Packaging,Packing materials,4343,61709,Materials,143.99,,Operations
12/05/2022,Lecturn,Second lecturn ,4145,64300,Conference Expenses,498.00,,Corporate Office
12/05/2022,The Trainline Online,*Redacted* - Online Train Booking,4440,60913,Public Transport for Clients,36.97,,Housing
12/05/2022,Amazon,Trolley,5288,61702,Equipment Maintenace,141.51,,Facilities
12/05/2022,Amazon,Clear Plastic storage boxes,4032,61713,Equipment,47.99,,One Leisure
12/05/2022,Amazon,Furniture removal equipment,4343,61713,Equipment,315.14,,Operations
12/05/2022,Screwfix,Telescopic ladders,4362,61713,Equipment,163.99,,Operations
13/05/2022,Amazon,CPR Valves,4075,61713,Equipment,43.20,,One Leisure
13/05/2022,eBay,Decoration - Jubilee Promotion,4010,62005,Advertising Publicity & Marketing,19.16,,One Leisure
13/05/2022,eBay,Decoration - Jubilee Promotion,4010,62005,Advertising Publicity & Marketing,56.92,,One Leisure
13/05/2022,eBay,Decoration - Jubilee Promotion,4010,62005,Advertising Publicity & Marketing,19.16,,One Leisure
13/05/2022,eBay,Decoration - Jubilee Promotion,4010,62005,Advertising Publicity & Marketing,20.96,,One Leisure
13/05/2022,Money Claim Online(County Court),Court fees for Legal Action to recover debt,9167,12052,Sales Control,35.00,,Benefits
14/05/2022,Screwfix,Router,4119,61713,Equipment,319.98,,Country Services
15/05/2022,Amazon,Paint stripper,4055,60201,Maintenance - Building,26.00,,One Leisure
16/05/2022,Amazon,Key Rings,5288,61702,Equipment Maintenace,22.99,,Facilities
16/05/2022,Amazon,Magicard Printer Ribbon,5288,61702,Equipment Maintenace,46.49,,Facilities
16/05/2022,Amazon,Refund,5288,61702,Equipment Maintenace,-23.97,,Facilities
16/05/2022,Amazon,Adapter Charger,4129,62003,Books Publications & Resources,35.98,,Operations
16/05/2022,Amazon,Sofa,5190,61713,Equipment,349.00,,Operations
16/05/2022,Wayfair,Bean bag,5190,61713,Equipment,88.99,,Operations
16/05/2022,Wayfair,Furniture return,4170,64800,Membership & Subscriptions,-114.00,,Operations
16/05/2022,CIEEM,Training,4124,60115,Staff Training & Development,240.00,,Country Services
17/05/2022,HG Pell & sons,Plants for hanging basket,4075,61713,Equipment,43.20,,One Leisure
17/05/2022,B&Q,Compost,4075,61713,Equipment,16.00,,One Leisure
17/05/2022,Amazon,Car chargers,4342,61713,Equipment,139.80,,Operations
18/05/2022,IQL,NPSQ Trainer course,4021,60115,Staff Training & Development,204.00,,One Leisure
18/05/2022,Adobe,Marketing,4010,62005,Advertising Publicity & Marketing,41.62,,One Leisure
18/05/2022,Companies House,HDC Ventures,4157,64800,Membership & Subscriptions,13.00,,Corporate Office
18/05/2022,Companies House,HDC Ventures,4157,64800,Membership & Subscriptions,13.00,,Corporate Office
18/05/2022,Brookes,Catering for Annual Council,4164,61902,Catering Services,210.00,,Corporate Office
18/05/2022,Air Products,Gas cylinder hire,5370,61713,Equipment,36.36,,Operations
19/05/2022,Amazon,Refund,5288,61702,Equipment Maintenace,-46.49,,Facilities
20/05/2022,tahdah,NPLQ materials / OLSI,4055,61709,Materials,403.00,,One Leisure
23/05/2022,Canva,Canva:03426-15961280- Sydney,5222,64071,ICT Software,10.99,,3C ICT
23/05/2022,Amazon,Batteries,5288,61702,Equipment Maintenace,7.30,,Facilities
24/05/2022,Amazon,gym storage boc,4075,61713,Equipment,52.49,,One Leisure
24/05/2022,Amazon,Batteries,5288,61702,Equipment Maintenace,12.99,,Facilities
24/05/2022,Amazon,Carpet/Upholstery Shampoo,5288,61702,Equipment Maintenace,18.28,,Facilities
24/05/2022,MATTERPORT               CA,Virtual Tours Licnece Fee,4010,62005,Advertising Publicity & Marketing,9.59,,One Leisure
24/05/2022,Mulberries Florist,*Redacted* after polling station accident,4499,69150,Other Services,35.50,,Corporate Office
24/05/2022,Amazon,Magnetic tape,4343,61709,Materials,19.98,,Operations
24/05/2022,Westminster Forum,Conference,4129,62401,Subcontractors,252.00,,Operations
25/05/2022,Plumb IT,Biocide (Yardwash),5204,60201,Maintenance - Building,672.00,,Operations
25/05/2022,DVLA,Vehicle Excise Duty,5204,60905,Vehicle Licencing,292.50,,Operations
25/05/2022,DVLA,Vehicle Excise Duty,5204,60905,Vehicle Licencing,292.50,,Operations
25/05/2022,Amazon,3 Keyboards,5285,61713,Equipment,25.47,,Operations
25/05/2022,Timpson Ltd,Keys,5214,61713,Equipment,40.00,,Operations
25/05/2022,RLSS,NPLQ course packs,4055,61709,Materials,61.00,,One Leisure
26/05/2022,Marks and Spencer,working lunch for SLT meeting,4145,61903,Hospitality,25.55,,Corporate Office
26/05/2022,Amazon,Padlocks,4075,61713,Equipment,24.95,,One Leisure
26/05/2022,RLSS - Tahdah,Training Resources,5220,60115,Staff Training & Development,45.25,,One Leisure
26/05/2022,RLSS - Tahdah,Training Resources,5220,60115,Staff Training & Development,33.00,,One Leisure
26/05/2022,Amazon,Kettle for Office,4157,62004,General Office Expenses,30.12,,Corporate Office
26/05/2022,Amazon,Height adjustable standing desk,5184,61702,Equipment Maintenace,99.99,,Operations
27/05/2022,The Trainline Online,* Redacted* - Online Train Booking,4440,60913,Public Transport for Clients,37.92,,Housing
27/05/2022,D LINE EISENWARE,Strong Room Keys,5288,61702,Equipment Maintenace,61.68,,Facilities
27/05/2022,Go Audits,Audit app,4362,61707,Car Park Machines,353.98,,Operations
27/05/2022,Screwfix,Bowling painting materials,4050,60201,Maintenance - Building,78.22,,One Leisure
28/05/2022,iStock.com               New York,Stock Images,4010,62005,Advertising Publicity & Marketing,84.00,,One Leisure
29/05/2022,Amazon,Table place name holders for meetings,4157,61703,Purchase - Equipment Furniture and Materials,212.37,,Corporate Office
30/05/2022,Argos,*Redacted* - Homeless Prevention Purchase,4440,64403,Homeless Prevention Payments,32.95,,Housing
30/05/2022,Ebay,Stanley Knife blades,5288,61702,Equipment Maintenace,7.49,,Facilities
30/05/2022,Ebay,Stanley Knife,5288,61702,Equipment Maintenace,11.99,,Facilities
30/05/2022,Ebay,Stanley Knife hook blades,5288,61702,Equipment Maintenace,9.99,,Facilities
30/05/2022,Amazon,Archive Boxes - Standard,5288,61702,Equipment Maintenace,132.66,,Facilities
30/05/2022,Facebook,Facebook advertising,4010,62005,Advertising Publicity & Marketing,25.00,,One Leisure
31/05/2022,Amazon,2 ADJ LAPTOP STANDS OLD,4055,61713,Equipment,15.98,,One Leisure
31/05/2022,Amazon,High Speed Cables,5209,61713,Equipment,7.74,,Operations
01/06/2022,Hive ,Books for SLT team,4145,62003,Books Publications & Resources,33.18,,Corporate Office
01/06/2022,Sign Holders Ltd,12 x Room name frames,5288,61702,Equipment Maintenace,216.00,,Facilities
01/06/2022,Amazon,Velcro Hook & Loop 50m,5288,61702,Equipment Maintenace,70.90,,Facilities
01/06/2022,Amazon,Mounting Tape,5288,61702,Equipment Maintenace,8.79,,Facilities
01/06/2022,Microsoft,Azure Licence,5286,64071,ICT Software,27.60,,3C ICT
01/06/2022,J2 eFax,Fax-to-email software,5222,64071,ICT Software,19.20,,3C ICT
01/06/2022,AutoSPF,Authorised Email Domain - 3Cs,5286,64071,ICT Software,10.36,,3C ICT
01/06/2022,Tamar Telecomms,0300 number for BldgCont,5222,64077,Land Line Rental,17.99,,3C ICT
01/06/2022,Tamar Telecomms,Extra SIP Numbers for SCDC,5223,64077,Land Line Rental,215.86,,3C ICT
01/06/2022,Tamar Telecomms,Extra SIP Numbers for HDC,5229,64077,Land Line Rental,19.19,,3C ICT
01/06/2022,Postman,Digital Team,5286,64071,ICT Software,127.01,,3C ICT
01/06/2022,MailChimp,MailChimp Subscription,5227,64077,Land Line Rental,16.57,,3C ICT
01/06/2022,MailChimp,Mandrill Auto Email,5222,64077,Land Line Rental,81.20,,3C ICT
01/06/2022,Paddle,EasyRetro,5222,64071,ICT Software,60.00,,3C ICT
02/06/2022,Amazon,Star Head Screwdriver Heads,5288,61702,Equipment Maintenace,34.45,,Facilities
03/06/2022,Amazon,Hex Set,5288,61702,Equipment Maintenace,16.37,,Facilities
06/06/2022,Amazon,gym foam roller,4075,61713,Equipment,16.98,,One Leisure
06/06/2022,Facebook,Facebook Advertising,4010,62005,Advertising Publicity & Marketing,25.00,,One Leisure
06/06/2022,DVSA,Equipment,4143,61713,Equipment,62.00,,Operations
07/06/2022,Zoom ,Licence for Virtual Committee Meeetings,4157,64072,ICT Licence,191.90,,Corporate Office
08/06/2022,Screwfix,Bosch 305mm Mitre Saw,4119,61703,Purchase - Equipment Furniture and Materials,799.99,,Operations
08/06/2022,Facebook,Facebook Advertising,4010,62005,Advertising Publicity & Marketing,25.00,,One Leisure
08/06/2022,HSE,H&S posters,4021,61713,Equipment,30.60,,One Leisure
08/06/2022,Screwfix,Varnish for platters,4119,61709,Materials,14.99,,Country Services
09/06/2022,Twilio,Recurring payment for Voice bot application,4151,64071,ICT Software,10.27,,Corporate Office
09/06/2022,Screwfix,work boots ,4050,61713,Equipment,39.99,,One Leisure
09/06/2022,Screwfix,work boots ,4050,61713,Equipment,5.00,,One Leisure
09/06/2022,Amazon,PAID OVERDUE ETC RUBBER STAMP,4055,61709,Materials,15.20,,One Leisure
09/06/2022,Money Claim Online(County Court),Court fees for Legal Action to recover debt,9167,12052,Sales Control,70.00,,Benefits
09/06/2022,CIWM,Conference,4341,62401,Subcontractors,64.80,,Operations
10/06/2022,Amazon,fuses for pool cover,4075,61713,Equipment,3.09,,One Leisure
10/06/2022,Amazon,work phone accessories ,4021,61713,Equipment,21.98,,One Leisure
10/06/2022,Amazon,FILE COPY RUBBER STAMP,4055,61709,Materials,7.99,,One Leisure
12/06/2022,Amazon,handles for gym machine,4075,61713,Equipment,35.98,,One Leisure
13/06/2022,Amazon,handles for gym machine,4075,61713,Equipment,31.18,,One Leisure
13/06/2022,Amazon,New phone accessories,5288,61702,Equipment Maintenace,68.94,,Facilities
13/06/2022,Amazon,New phone accessories,5288,61702,Equipment Maintenace,127.69,,Facilities
13/06/2022,Amazon,New phone accessories,5288,61702,Equipment Maintenace,45.96,,Facilities
13/06/2022,Amazon,Blind Weights,5288,61702,Equipment Maintenace,115.15,,Facilities
13/06/2022,Mailchimp,Bulk emails,4135,64100,Postage & Courier Services,585.94,,Corporate Office
13/06/2022,BENS NEWS ST IVES,STAMPS - OLR,4032,64100,Postage & Courier Services,16.40,,One Leisure
15/06/2022,Ionos Ltd,1 and 1 Ionos Ltd - hdcvsecurity.co.uk,5286,64900,Registration Fee,11.99,,3C ICT
16/06/2022,Activity direct,10 x Russel Hobbs Kettles,5288,61702,Equipment Maintenace,229.99,,Facilities
16/06/2022,BALLOON PRINTING,Promotional balloons,4010,62005,Advertising Publicity & Marketing,168.80,,One Leisure
16/06/2022,Facebook,Facebook Advertising,4010,62005,Advertising Publicity & Marketing,24.94,,One Leisure
16/06/2022,ESE Direct,signs ,4055,61709,Materials,60.48,,One Leisure
16/06/2022,Amazon,Pouches for Chair and Vice-Chair chain,5009,61703,Purchase - Equipment Furniture and Materials,8.78,,Corporate Office
16/06/2022,B and Q,Sanderdisks,4119,61713,Equipment,26.11,,Country Services
16/06/2022,Amazon,PH corrector,4032,61713,Equipment,49.90,,One Leisure
17/06/2022,Digital ID,Blank Access Cards,5288,61702,Equipment Maintenace,368.27,,Facilities
18/06/2022,Adobe,Marketing,4010,62005,Advertising Publicity & Marketing,41.62,,One Leisure
20/06/2022,Amazon,Conference speaker for Friends Group meetings,4119,61713,Equipment,94.33,,Country Services
20/06/2022,Umbraco,Training for Digital team,5229,60115,Staff Training & Development,909.00,,3C ICT
20/06/2022,Canva,Annual subscription,4129,61706,Playground Equipment,99.99,,Operations
21/06/2022,Amazon,Blind Parts,5288,61702,Equipment Maintenace,128.48,,Facilities
21/06/2022,Amazon,Keysafe HBS Drivers,5288,61702,Equipment Maintenace,50.01,,Facilities
21/06/2022,Street Solutions UK,Road Closure Equipment,5370,62900,Events,372.76,,Operations
21/06/2022,Group Greeting Card,Staff - greeting card,4143,60124,Team Rewards,3.99,,Operations
22/06/2022,Amazon,1 x Konig VGA Audio Extender through UTP - One Leisure St Ives,5224,64070,ICT Hardware,70.92,,3C ICT
22/06/2022,Canva,Canva:03426-15961280- Sydney,5222,64071,ICT Software,10.99,,3C ICT
23/06/2022,eBay,Balloon accessories,4010,62005,Advertising Publicity & Marketing,15.10,,One Leisure
23/06/2022,Tool Station,Tarpaulin/rope,4343,61713,Equipment,94.96,,Operations
23/06/2022,Amazon,Aquafit speaker,4056,61713,Equipment,118.00,,One Leisure
24/06/2022,Timpson,HBS Keys ,5288,61702,Equipment Maintenace,99.00,,Facilities
24/06/2022,eBay,Balloon accessories,4010,62005,Advertising Publicity & Marketing,8.95,,One Leisure
27/06/2022,DVLA,Vehicle Excise Duty,5204,60905,Vehicle Licencing,302.50,,Operations
27/06/2022,DVLA,Vehicle Excise Duty,5204,60905,Vehicle Licencing,292.50,,Operations
27/06/2022,DVLA,Vehicle Excise Duty,5204,60905,Vehicle Licencing,302.50,,Operations
27/06/2022,DVLA,Vehicle Excise Duty,5204,60905,Vehicle Licencing,302.50,,Operations
27/06/2022,DVLA,Vehicle Excise Duty,5204,60905,Vehicle Licencing,302.50,,Operations
27/06/2022,DVLA,Vehicle Excise Duty,5204,60905,Vehicle Licencing,292.50,,Operations
27/06/2022,DVLA,Vehicle Excise Duty,5204,60905,Vehicle Licencing,302.50,,Operations
27/06/2022,Amazon,A3 Laminator,5288,61702,Equipment Maintenace,73.71,,Facilities
27/06/2022,Amazon,Laminating ouches,5288,61702,Equipment Maintenace,44.62,,Facilities
27/06/2022,MATTERPORT,Virtual Tours,4010,62005,Advertising Publicity & Marketing,9.59,,One Leisure
27/06/2022,Big Dug,Shelving/Racking for Octogon,5370,62900,Events,523.97,,Operations
29/06/2022,B&H Digital,Business cards for *Redacted*,4142,62002,Stationary,22.96,,Corporate Office
29/06/2022,Amazon,Outdoor Maintenace,4063,60201,Maintenance - Building,17.97,,One Leisure
30/06/2022,Amazon,A4 Paper - 20 boxes,5288,61702,Equipment Maintenace,315.38,,Facilities
30/06/2022,iStock,Stock Images,4010,62005,Advertising Publicity & Marketing,84.00,,One Leisure
30/06/2022,Facebook,Active for Health advert,4095,62009,Communication Material,20.00,,Active Leisure
30/06/2022,Westminster Forum,Conference,4170,64800,Membership & Subscriptions,312.00,,Operations
30/06/2022,Amazon,Gym bar equipment,4053,61713,Equipment,99.98,,One Leisure
01/07/2022,UKSigns & Promotions,Locksmith - MSCP,5288,61702,Equipment Maintenace,318.00,,Facilities
01/07/2022,Amazon,Paper Cups,5288,61702,Equipment Maintenace,75.18,,Facilities
01/07/2022,Google,Map searches for City,5222,64071,ICT Software,299.70,,3C ICT
01/07/2022,Google,Map searches for HDC,5229,64071,ICT Software,140.66,,3C ICT
01/07/2022,STA,SE - Training,5288,60115,Staff Training & Development,100.00,,Facilities
01/07/2022,Amazon,Office Shredder,4075,61713,Equipment,109.99,,One Leisure
01/07/2022,bcs.org,BCS membership for *Redacted*  1/7/22 - 1/7/23,5286,64072,ICT Licence,92.00,,3C ICT
01/07/2022,Amazon,Gym bar equipment,4053,61713,Equipment,31.45,,One Leisure
01/07/2022,Amazon,Gym bar equipment,4053,61713,Equipment,81.75,,One Leisure
01/07/2022,Amazon,Gym bar equipment,4053,61713,Equipment,74.25,,One Leisure
02/07/2022,Amazon,Prime,4124,61713,Equipment,7.99,,Country Services
02/07/2022,Amazon,AutoCad Manuals,5288,60115,Staff Training & Development,95.65,,Facilities
02/07/2022,Remarkable,Connect Plan subscription for Access to Work employee,5223,64070,ICT Hardware,5.99,,3C ICT
03/07/2022,Amazon,Telescopic duster,4075,61713,Equipment,20.00,,One Leisure
03/07/2022,Amazon,Shower shelf,4075,61713,Equipment,25.98,,One Leisure
04/07/2022,Amazon,Outdoor trophy cabinet,4063,60201,Maintenance - Building,162.35,,One Leisure
04/07/2022,Marks & Spencer,working lunch for SLT meeting,4145,61903,Hospitality,3.70,,Corporate Office
04/07/2022,Marks & Spencer,working lunch for SLT meeting,4145,61903,Hospitality,8.40,,Corporate Office
04/07/2022,Money Claim Online(County Court) ,Legal fees for recovery of debt,9167,12052,Sales Control,50.00,,Benefits
05/07/2022,Atlassian,JIRA Subscription,5286,64071,ICT Software,"1,055.20",,3C ICT
05/07/2022,Microsoft,Azure Licence,5286,64071,ICT Software,28.41,,3C ICT
06/07/2022,Twilio,Recurring payment for Voice bot application,4151,64071,ICT Software,10.05,,Corporate Office
06/07/2022,Amazon,Headset for *Redacted*,5224,64070,ICT Hardware,18.97,,3C ICT
07/07/2022,Zoom,Licence for Virtual Committee Meeetings,4157,64072,ICT Licence,191.90,,Corporate Office
07/07/2022,Armada Training,CW - CAD Training,5288,60115,Staff Training & Development,474.00,,Facilities
08/07/2022,Ross Handling Ltd,8 BRAKES 4 SWIVEL CASTORS DAVID,4055,61702,Equipment Maintenace,74.58,,One Leisure
09/07/2022,Atlassian,JIRA Subscription,5286,64071,ICT Software,"1,010.10",,3C ICT
09/07/2022,Paddle,EasyRetro,5222,64071,ICT Software,60.00,,3C ICT
09/07/2022,Amazon,Descaler,5288,61709,Materials,132.87,,Facilities
10/07/2022,MailChimp,Bulk emails,4135,64100,Postage & Courier Services,612.33,,Corporate Office
10/07/2022,Amazon,Traffic cones,5288,61709,Materials,112.62,,Facilities
10/07/2022,Amazon,Card printer ribbons,5288,61709,Materials,113.88,,Facilities
11/07/2022,Amazon,Wet floor signs,5288,61709,Materials,100.96,,Facilities
12/07/2022,Amazon,Oil suction syringe,5214,61709,Materials,29.98,,Operations
12/07/2022,Jesuk,Bravilor plate mixer motor,4118,61707,Car Park Machines,57.52,,Operations
12/07/2022,Amazon,8 Step Stepladder,5288,61709,Materials,210.98,,Facilities
12/07/2022,RLSS Tahdah,learning resources,5220,60115,Staff Training & Development,82.00,,One Leisure
13/07/2022,WH Smith,Stationery for engagement activity,4135,64300,Conference Expenses,17.80,,Corporate Office
13/07/2022,The Works,Stationery for engagement activity,4135,64300,Conference Expenses,36.00,,Corporate Office
13/07/2022,The Works,Stationery for engagement activity,4135,64300,Conference Expenses,8.00,,Corporate Office
13/07/2022,J2 eFax,Fax-to-email software,5222,64071,ICT Software,19.20,,3C ICT
13/07/2022,Amazon,Cable protector,5288,61709,Materials,50.98,,Facilities
13/07/2022,Amazon,Paxton Access Cards - CPCA,5288,61709,Materials,247.19,,Facilities
13/07/2022,Amazon,Paving sealant,5288,61709,Materials,54.37,,Facilities
13/07/2022,Amazon,classroom tables ,4018,61713,Equipment,349.89,,One Leisure
13/07/2022,Amazon,electric socket covers,4075,61713,Equipment,14.97,,One Leisure
13/07/2022,Aldi,Water for staff and traders,5370,62900,Events,17.88,,Operations
14/07/2022,Royal Mail,Stamps,4362,69150,Other Services,136.00,,Operations
14/07/2022,AutoSPF,Authorised Email Domain - 3Cs,5286,64071,ICT Software,10.51,,3C ICT
14/07/2022,Facebook,PAO recruitment advert,4106,62009,Communication Material,7.00,,Active Leisure
14/07/2022,RLSS,"Manikin wipes, airways",4075,61713,Equipment,125.82,,One Leisure
14/07/2022,Amazon,Toilet Flush,4075,61713,Equipment,23.45,,One Leisure
14/07/2022,Amazon,pool suction pads,4075,61713,Equipment,15.90,,One Leisure
15/07/2022,Amazon,Car charger/screen protector/phone case,5380,61713,Equipment,17.88,,Operations
15/07/2022,Facebook,PAO recruitment advert,4106,62009,Communication Material,7.00,,Active Leisure
15/07/2022,RLSS Tahdah,learning resources,5220,60115,Staff Training & Development,24.00,,One Leisure
15/07/2022,Digicert Inc,Security Software,5286,64071,ICT Software,739.59,,3C ICT
15/07/2022,Digicert Inc,Security Software,5229,64071,ICT Software,233.33,,3C ICT
15/07/2022,Digicert Inc,Security Software,5222,64071,ICT Software,233.33,,3C ICT
15/07/2022,Amazon,BH thermometers,4055,61713,Equipment,17.98,,One Leisure
15/07/2022,Screwfix,Padlocks - Equpment Security,5370,62900,Events,79.12,,Operations
16/07/2022,Facebook,PAO recruitment advert,4106,62009,Communication Material,7.00,,Active Leisure
17/07/2022,Facebook,PAO recruitment advert,4106,62009,Communication Material,7.00,,Active Leisure
17/07/2022,Amazon,6 Step Stepladder,5288,61709,Materials,167.29,,Facilities
17/07/2022,Amazon,hanging strips,4075,61713,Equipment,23.58,,One Leisure
17/07/2022,Amazon,Waterproof case,4075,61713,Equipment,51.92,,One Leisure
18/07/2022,Adobe,Marketing,4010,62005,Advertising Publicity & Marketing,41.62,,One Leisure
18/07/2022,Wilko,Stationery for engagement activity,4145,62002,Stationary,7.20,,Corporate Office
18/07/2022,Facebook,PAO recruitment advert,4106,62009,Communication Material,12.00,,Active Leisure
18/07/2022,anglia fastenings,nuts and bolts,4124,61713,Equipment,305.06,,Country Services
19/07/2022,Vevor,Surface cleaner pressure washer,4327,61713,Equipment,245.99,,Operations
19/07/2022,The Trainline Online,*Redacted* - Online Train Booking,4440,60913,Public Transport for Clients,69.55,,Housing
19/07/2022,Brookes,Catering for Council Meeting,4164,61902,Catering Services,180.00,,Corporate Office
19/07/2022,defib4life,new defiblarator pads,4124,61713,Equipment,93.60,,Country Services
20/07/2022,The Trainline Online,*Redacted* - Online Train Booking,4440,60913,Public Transport for Clients,69.55,,Housing
20/07/2022,Canva,Subscription charges,5222,64071,ICT Software,10.99,,3C ICT
20/07/2022,Digicert Inc,Security Software,5229,64071,ICT Software,736.23,,3C ICT
21/07/2022,The Trainline Online,*Redacted* - Online Train Booking,4440,60913,Public Transport for Clients,-56.40,,Housing
21/07/2022,The Trainline Online,*Redacted* - Online Train Booking,4440,60913,Public Transport for Clients,-56.40,,Housing
21/07/2022,Amazon,Jura Milk cleaner 2 @  ZEST,4052,61300,Cleaning Materials,54.00,,One Leisure
22/07/2022,The Trainline Online,*Redacted* - Online Train Booking,4440,60913,Public Transport for Clients,7.63,,Housing
22/07/2022,Postman,Digital Team,5286,64071,ICT Software,129.60,,3C ICT
22/07/2022,Screwfix,Dust Estractor,4119,61713,Equipment,449.98,,Country Services
22/07/2022,Toolstation,Roller Stand,4119,61713,Equipment,34.98,,Country Services
22/07/2022,Toolstation,Safety Eye Guard,4119,60207,Health & Safety Supplies & Services,2.98,,Country Services
22/07/2022,Amazon,Paving Sand,5288,61709,Materials,14.95,,Facilities
22/07/2022,RLSS Tahdah,learning resources,5220,60115,Staff Training & Development,238.70,,One Leisure
22/07/2022,Defib store ,defib batteries ,5190,61713,Equipment,86.40,,One Leisure
22/07/2022,Defib store ,defib batteries ,4018,61713,Equipment,86.40,,One Leisure
22/07/2022,Defib Pad,defib pads,4018,61713,Equipment,319.20,,One Leisure
22/07/2022,Screwfix,Eyebolts for Benches,4119,61713,Equipment,53.64,,Country Services
23/07/2022,MailChimp,MailChimp Subscription,5227,64077,Land Line Rental,16.87,,3C ICT
23/07/2022,MailChimp,Mandrill Auto Email,5222,64077,Land Line Rental,82.65,,3C ICT
23/07/2022,Amazon,Snow Salt ,5288,61709,Materials,194.82,,Facilities
24/07/2022,Amazon,Paint OLSI,4055,60201,Maintenance - Building,17.84,,One Leisure
24/07/2022,Amazon,plug socket covers,4075,61713,Equipment,14.97,,One Leisure
25/07/2022,Amazon,Printer cartridge,4362,62002,Stationary,151.00,,Operations
25/07/2022,Tesco,thank you flowers for team member,4145,61903,Hospitality,12.50,,Corporate Office
25/07/2022,Amazon,Drain Auger,5288,61709,Materials,5.69,,Facilities
25/07/2022,Amazon,fire exit stickers,4075,61713,Equipment,15.98,,One Leisure
25/07/2022,MATTERPORT,3D hosting,4010,62005,Advertising Publicity & Marketing,9.59,,One Leisure
25/07/2022,West End DIY,Chain - Equipment Security,5370,62900,Events,65.00,,Operations
26/07/2022,Ebay,Water pump,5214,61713,Equipment,27.98,,Operations
26/07/2022,The Trainline Online,*Redacted* - Online Train Booking,4440,60913,Public Transport for Clients,-3.70,,Housing
26/07/2022,Tamar Telecomms,0300 number for BldgCont,5222,64077,Land Line Rental,14.99,,3C ICT
26/07/2022,Tamar Telecomms,Extra SIP Numbers for SCDC,5223,64077,Land Line Rental,209.86,,3C ICT
26/07/2022,Tamar Telecomms,Extra SIP Numbers for HDC,5229,64077,Land Line Rental,10.99,,3C ICT
26/07/2022,Facebook,PAO recruitment advert,4106,62009,Communication Material,17.00,,Active Leisure
26/07/2022,Amazon,Pressure Sprayer,5288,61709,Materials,45.26,,Facilities
27/07/2022,Just Eat,Staff rewards,4143,60124,Team Rewards,210.00,,Operations
27/07/2022,Just Eat,Staff rewards,4143,60124,Team Rewards,60.00,,Operations
27/07/2022,Amazon,Wall filler kits,5288,61709,Materials,77.58,,Facilities
27/07/2022,Amazon,Key press,5288,61709,Materials,74.53,,Facilities
27/07/2022,Amazon,Microwave - EFH,5288,61709,Materials,84.99,,Facilities
27/07/2022,Amazon,Office equipment ,4018,61713,Equipment,27.52,,One Leisure
28/07/2022,Local Government,Conference,4143,64800,Membership & Subscriptions,477.60,,Operations
28/07/2022,Tamar Telecomms,Extra SIP Numbers for SCDC,5223,64077,Land Line Rental,2.20,,3C ICT
28/07/2022,Leicester Outdoor Pursuits,Archery Course,4107,60121,Training Attendance,250.00,,Active Leisure
28/07/2022,Amazon,fire exit stickers,4075,61713,Equipment,15.98,,One Leisure
29/07/2022,Prestige Flowers,Staff rewards,4143,60124,Team Rewards,34.48,,Operations
29/07/2022,Twilio,Recurring payment for Voice bot application,4151,64071,ICT Software,10.01,,Corporate Office
29/07/2022,Amazon,gym equipment ,4018,61713,Equipment,114.75,,One Leisure
29/07/2022,Amazon,Barbell Pad,4032,61713,Equipment,13.99,,One Leisure
29/07/2022,Amazon,Castor Wheels,4032,61713,Equipment,60.92,,One Leisure
29/07/2022,Primal Strength,Hip Thruster Bench,4032,61713,Equipment,356.39,,One Leisure
30/07/2022,Amazon,Worx ION Battery,5288,61709,Materials,59.36,,Facilities
30/07/2022,Digicert Inc,Security Software,5286,64071,ICT Software,677.61,,3C ICT
30/07/2022,Digicert Inc,Security Software,5229,64071,ICT Software,-229.14,,3C ICT
31/07/2022,Facebook,Active for Health advert,4095,62009,Communication Material,20.00,,Active Leisure
31/07/2022,DVLA,Vehicle Excise Duty,5204,60905,Vehicle Licencing,292.50,,Operations
31/07/2022,DVLA,Vehicle Excise Duty,5204,60905,Vehicle Licencing,302.50,,Operations
31/07/2022,DVLA,Vehicle Excise Duty,5204,60905,Vehicle Licencing,292.50,,Operations
31/07/2022,DVLA,Vehicle Excise Duty,5204,60905,Vehicle Licencing,302.50,,Operations
31/07/2022,DVLA,Vehicle Excise Duty,5204,60905,Vehicle Licencing,302.50,,Operations
31/07/2022,DVLA,Vehicle Excise Duty,5204,60905,Vehicle Licencing,292.50,,Operations
01/08/2022,Google,Map searches for HDC,5229,64071,ICT Software,189.98,,3C ICT
01/08/2022,Google,Map searches for City,5222,64071,ICT Software,401.64,,3C ICT
01/08/2022,Nisbets,POLAR G SERIES FREEZER ZEST,100020,61713,Equipment,"1,466.95",,One Leisure
01/08/2022,DVLA,Vehicle Excise Duty,5204,60905,Vehicle Licencing,302.50,,Operations
01/08/2022,DVLA,Vehicle Excise Duty,5204,60905,Vehicle Licencing,302.50,,Operations
01/08/2022,DVLA,Vehicle Excise Duty,5204,60905,Vehicle Licencing,292.50,,Operations
01/08/2022,DVLA,Vehicle Excise Duty,5204,60905,Vehicle Licencing,292.50,,Operations
01/08/2022,DVLA,Vehicle Excise Duty,5204,60905,Vehicle Licencing,302.50,,Operations
01/08/2022,Amazon,Steel brackets,5288,61709,Materials,26.97,,Facilities
01/08/2022,iStock,Stock images ,4010,62005,Advertising Publicity & Marketing,84.00,,One Leisure
02/08/2022,Yellow Shield Ltd,Single bin store,4327,61713,Equipment,179.99,,Operations
02/08/2022,Pod Point,Demo Electric vehicle charge,5204,60902,Fuel,20.00,,Operations
02/08/2022,DVLA,Vehicle Excise Duty,5204,60905,Vehicle Licencing,302.50,,Operations
02/08/2022,Amazon,Prime,4124,61713,Equipment,7.99,,Country Services
02/08/2022,Amazon,Filler & Stain,5288,61709,Materials,58.95,,Facilities
02/08/2022,RLSS Tahdah,learning resources,5220,60115,Staff Training & Development,238.70,,One Leisure
02/08/2022,Remarkable,Connect Plan subscription for Access to Work employee,5223,64070,ICT Hardware,5.99,,3C ICT
03/08/2022,Facebook,Active for Health advert,4095,62009,Communication Material,7.18,,Active Leisure
03/08/2022,Brookes,Hospitality,4145,61903,Hospitality,72.80,,Corporate Office
03/08/2022,Marks & Spencer,Hospitality,4145,61903,Hospitality,48.90,,Corporate Office
03/08/2022,Sainsburys,Hospitality,4145,61903,Hospitality,4.90,,Corporate Office
03/08/2022,Amazon,Materials,5288,61709,Materials,67.86,,Facilities
04/08/2022,Amazon,Equipment,4032,61713,Equipment,315.19,,One Leisure
05/08/2022,Amazon,Materials,5288,61709,Materials,27.08,,Facilities
05/08/2022,Amazon,Materials,5288,61709,Materials,66.91,,Facilities
06/08/2022,Amazon,Equipment,4055,61713,Equipment,9.99,,One Leisure
06/08/2022,Castors Online,Equipment,4055,61713,Equipment,189.54,,One Leisure
07/08/2022,GitKraken,Software for Digital Team,5286,64071,ICT Software,305.74,,3C ICT
07/08/2022,RLSS ,Staff training autoinjector trainers,4055,61713,Equipment,37.75,,One Leisure
08/08/2022,amazon,window squeegee blade,4075,61713,Equipment,16.94,,One Leisure
08/08/2022,Zoom,Licence for Virtual Committee Meeetings,4157,64072,ICT Licence,191.90,,Corporate Office
08/08/2022,Stevanage Swimming Centre,Equipment,4018,61713,Equipment,150.00,,One Leisure
09/08/2022,The Soccer Store,Football Pack,4107,61708,Sports Equipment,74.95,,Active Leisure
09/08/2022,The Soccer Store,Delivery & Handling,4107,64100,Postage & Courier Services,5.95,,Active Leisure
09/08/2022,Concept 2,Rower foot straps,4075,61713,Equipment,22.50,,One Leisure
09/08/2022,Atlassian,JIRA Subscription,5286,64071,ICT Software,"1,059.04",,3C ICT
09/08/2022,Security Industry,Licence,4185,60410,Licences,190.00,,Operations
09/08/2022,Timpson,Materials,5288,61709,Materials,72.00,,Facilities
10/08/2022,Tamar Telecomms (WP-Lalnet4U Ltd),Account: 1026097 - Building Control for - 0300 numbers for BC services across the 3C's,5222,64077,Land Line Rental,18.89,,3C ICT
10/08/2022,Tamar Telecomms (WP-Lalnet4U Ltd),Account: 1039230 - Building Control for - 0300 numbers for BC services across the 3C's,5223,64077,Land Line Rental,220.36,,3C ICT
10/08/2022,Tamar Telecomms (WP-Lalnet4U Ltd),Account: 1026097 - 1040450 - HDC Port Number Extensions,5229,64077,Land Line Rental,13.85,,3C ICT
10/08/2022,Etsy,Staff Reward,4143,60124,Team Rewards,27.00,,Operations
10/08/2022,Etsy,Staff Reward,4143,60124,Team Rewards,27.00,,Operations
10/08/2022,Mailchimp,Postage & Courier Services,4145,64100,Postage & Courier Services,605.52,,Corporate Office
10/08/2022,Digicert Inc,ICT Software,5229,64071,ICT Software,181.41,,3C ICT
10/08/2022,Timpson,Materials,5288,61709,Materials,28.00,,Facilities
11/08/2022,Tamar Telecomms (WP-Lalnet4U Ltd),Account: 1026097 - Building Control for - 0300 numbers for BC services across the 3C's,5222,64077,Land Line Rental,32.99,,3C ICT
11/08/2022,Digicert Inc,For: sts.councilanywhere.org,5286,64077,Land Line Rental,228.97,,3C ICT
11/08/2022,Booker,Cleaning Materials,4049,61300,Cleaning Materials,277.70,,One Leisure
11/08/2022,Amazon,Materials,5288,61709,Materials,94.89,,Facilities
11/08/2022,Amazon,Materials,5288,61709,Materials,52.53,,Facilities
12/08/2022,Group Greeting Cards,Materials,5288,61709,Materials,5.00,,Facilities
13/08/2022,J2 eFax,Fax-to-email software,5222,64071,ICT Software,19.20,,3C ICT
13/08/2022,Infogram,Software for Digital Team,5286,64071,ICT Software,194.02,,3C ICT
14/08/2022,AutoSPF,Authorised Email Domain - 3Cs,5286,64071,ICT Software,10.21,,3C ICT
15/08/2022,Amazon,Equipment,4124,61713,Equipment,36.54,,Country Services
15/08/2022,Amazon,Materials,5288,61709,Materials,10.39,,Facilities
15/08/2022,Timpson,Materials,5288,61709,Materials,22.00,,Facilities
16/08/2022,Amazon,Samsung Galaxy Tab Active Pro,5209,61713,Equipment,493.00,,Operations
16/08/2022,Screwfix,sports hall locks and gym chains,4055,61713,Equipment,71.23,,One Leisure
16/08/2022,Amazon,Materials,5288,61709,Materials,15.49,,Facilities
17/08/2022,ebay,swimming aids,4075,61713,Equipment,126.20,,One Leisure
17/08/2022,3 J C Ltd,Racking/boxes,4317,61713,Equipment,600.00,,Operations
17/08/2022,3 J C Ltd,Racking/boxes,4343,61713,Equipment,600.00,,Operations
17/08/2022,3 J C Ltd,Racking/boxes,4327,61713,Equipment,488.74,,Operations
17/08/2022,3 J C Ltd,Racking/boxes,4346,61713,Equipment,600.00,,Operations
17/08/2022,Amazon,Materials,5288,61709,Materials,251.97,,Facilities
17/08/2022,Tadah Verified,Equipment,4018,61713,Equipment,238.70,,One Leisure
18/08/2022,Amazon,Ramsey Equipment,4029,61713,Equipment,23.98,,One Leisure
18/08/2022,Adobe,Marketing,4010,62005,Advertising Publicity & Marketing,41.62,,One Leisure
18/08/2022,Hotline,Reusable bags for canvassers,4164,62003,Books Publications & Resources,232.56,,Corporate Office
18/08/2022,Group Greeting Cards,Card,4143,60124,Team Rewards,3.99,,Operations
18/08/2022,Amazon,Materials,5288,61709,Materials,45.98,,Facilities
18/08/2022,Tadah Verified,Equipment,4018,61713,Equipment,570.00,,One Leisure
18/08/2022,Screwfix,Equipment,4018,61713,Equipment,69.98,,One Leisure
19/08/2022,Amazon,Materials,5288,61709,Materials,63.96,,Facilities
20/08/2022,Canva,Canva invoice: 03518-14159238,5222,64077,Land Line Rental,10.99,,3C ICT
21/08/2022,Microsoft,Azure Licence,5286,64071,ICT Software,27.60,,3C ICT
21/08/2022,Just Eat,Staff Reward,4143,60124,Team Rewards,120.00,,Operations
21/08/2022,Amazon,Equipment,4018,61713,Equipment,35.28,,One Leisure
22/08/2022,Postman,Digital Team,5286,64071,ICT Software,131.55,,3C ICT
22/08/2022,Argos,Equipment,4440,61713,Equipment,210.00,,Housing
22/08/2022,Tadah Verified,Equipment,4018,61713,Equipment,80.00,,One Leisure
23/08/2022,HSS Hire,Bean stalk training,4050,60115,Staff Training & Development,"1,110.00",,One Leisure
23/08/2022,MailChimp,MailChimp Subscription,5227,64077,Land Line Rental,17.13,,3C ICT
23/08/2022,MailChimp,Mandrill Auto Email,5222,64077,Land Line Rental,83.89,,3C ICT
23/08/2022,Travel Lodge,Equipment,4440,61713,Equipment,167.25,,Housing
23/08/2022,Twilo,ICT Software,4151,64071,ICT Software,10.01,,Corporate Office
24/08/2022,E-bay,Motion sensor lights,4343,61713,Equipment,95.20,,Operations
24/08/2022,RLSS,Rookie LG course packs,4055,61709,Materials,193.55,,One Leisure
24/08/2022,Amazon,Materials,5288,61709,Materials,69.90,,Facilities
24/08/2022,Amazon,Materials,5288,61709,Materials,220.00,,Facilities
24/08/2022,Screwfix,Materials,5288,61709,Materials,16.40,,Facilities
24/08/2022,HCE UK,Materials,5288,61709,Materials,143.52,,Facilities
24/08/2022,Matterport,Advertising Publicity & Marketing,4010,62005,Advertising Publicity & Marketing,9.59,,One Leisure
25/08/2022,Hotel Chocolat,Thank you gift for *Redacted*,5262,69150,Other Services,63.95,,Finance
25/08/2022,Moonpig,Card and gift,4362,61713,Equipment,22.48,,Operations
25/08/2022,Amazon,swim tablets cases,4056,61713,Equipment,38.97,,One Leisure
25/08/2022,Travel Lodge,Equipment,4440,61713,Equipment,327.36,,Housing
25/08/2022,PO Counters,Postage & Courier Services,4032,64100,Postage & Courier Services,18.65,,One Leisure
25/08/2022,Institute of Swimming,Equipment,4032,61713,Equipment,375.00,,One Leisure
26/08/2022,Prestige Flowers,Condolence flowers for staff,4362,61713,Equipment,34.68,,Operations
26/08/2022,Aldi,BH buffet food for event,4050,61709,Materials,8.33,,One Leisure
26/08/2022,Aldi,BH buffet food for event,4050,61709,Materials,0.25,,One Leisure
29/08/2022,Facebook,Active for Health advert,4095,62009,Communication Material,2.69,,Active Leisure
29/08/2022,iStock,Advertising Publicity & Marketing,4010,62005,Advertising Publicity & Marketing,84.00,,One Leisure
30/08/2022,Amazon,DVD-R x 16,5285,61713,Equipment,18.47,,Operations
30/08/2022,RLSS,NPLQ renewal,4055,61709,Materials,123.00,,One Leisure
30/08/2022,Amazon,Materials,5288,61709,Materials,51.42,,Facilities
30/08/2022,Amazon,Materials,5288,61709,Materials,62.76,,Facilities
31/08/2022,amazon,Slush drink cups,4075,61713,Equipment,62.97,,One Leisure
31/08/2022,ebay,goal net clips,4075,61713,Equipment,27.99,,One Leisure
31/08/2022,Travel Lodge,Equipment,4440,61713,Equipment,96.88,,Housing
31/08/2022,Tadah Verified,Equipment,4018,61713,Equipment,8.00,,One Leisure
01/09/2022,Google,Map searches for City,5222,64071,ICT Software,437.14,,3C ICT
01/09/2022,Google,Map searches for HDC,5229,64071,ICT Software,267.98,,3C ICT
01/09/2022,Old Bridge Hotel,Hospitality,4145,61903,Hospitality,22.40,,Corporate Office
